bitfinex/quotes_ETHUSD_20240825
["timestamp","ask_amount","ask_price","bid_price","bid_amount"]
[1724566421646,3.6163,2765.3,2764.7,0.85037944]
[1724566422047,3.6163,2765.3,2764.8,2.4406]
[1724566422993,3.61601,2765.5,2764.8,2.4406]
[1724566423206,3.61601,2765.5,2764.8,6.05739]
[1724566424087,3.61614,2765.4,2764.8,6.05739]
[1724566424291,3.61614,2765.4,2764.9,0.73268444]
[1724566425411,3.61624,2765.3,2764.9,0.73268444]
[1724566425643,3.61612,2765.4,2764.9,0.73268444]
[1724566425911,3.61651,2765.1,2764.9,0.73268444]
[1724566426063,3.61651,2765.1,2764.8,2.4406]
[1724566426885,3.61648,2765.2,2764.5,7.32729439]
[1724566427211,3.61648,2765.2,2764.6,3.61713]
[1724566427579,3.61651,2765.1,2764.5,7.32724439]
[1724566427785,3.61651,2765.1,2764.6,0.73272444]
[1724566428856,3.61638,2765.2,2764.7,2.2686]
[1724566430073,3.61631,2765.3,2764.7,5.88562]
[1724566430274,7.23265,2765.3,2764.7,5.88562]
[1724566430491,7.23265,2765.3,2764.8,0.66183444]
[1724566430811,3.61631,2765.3,2764.8,0.66183444]
[1724566431368,4.88548439,2765.5,2764.8,4.27865444]
[1724566431570,4.88548439,2765.5,2764.9,3.61676]
[1724566432840,8.50156439,2765.5,2765.0,2.2686]
[1724566433730,8.50156439,2765.5,2765.0,2.92331944]
[1724566434997,4.88548439,2765.5,2765.0,2.92331944]
[1724566435204,8.50156439,2765.5,2765.0,2.92331944]
[1724566436142,3.61611,2765.4,2765.0,2.92331944]
[1724566438505,3.61611,2765.4,2765.0,2.2686]
[1724566443003,3.61625,2765.3,2765.0,2.2686]
[1724566443340,7.23259,2765.3,2765.0,2.2686]
[1724566443632,3.61625,2765.3,2765.0,2.2686]
[1724566443929,7.2326,2765.3,2765.0,2.2686]
[1724566444084,3.61638,2765.2,2765.0,2.2686]
[1724566444777,7.23258,2765.3,2765.0,2.2686]
[1724566444990,3.61625,2765.3,2765.0,2.2686]
[1724566445293,1.26945439,2765.1,2764.6,2.4067]
[1724566445457,1.26945439,2765.1,2764.3,0.35954544]
[1724566445458,3.61714,2764.7,2764.3,2.4067]
[1724566446379,3.73425439,2765.1,2764.3,2.4067]
[1724566446380,3.61658,2765.1,2764.5,3.61726]
[1724566446594,3.61658,2765.1,2764.7,2.4067]
[1724566452049,7.23316,2765.1,2764.7,2.4067]
[1724566452600,3.61664,2765.0,2764.7,2.4067]
[1724566453759,3.61658,2765.1,2764.7,2.4067]
[1724566455099,3.61666,2765.0,2764.7,3.05796314]
[1724566455308,3.61658,2765.1,2764.7,3.05796314]
[1724566455506,1.13026714,2765.0,2764.7,3.05796314]
[1724566459522,1.13026714,2765.0,2764.8,2.4044]
[1724566459807,3.6163,2765.3,2764.8,3.67385439]
[1724566460003,3.6163,2765.3,2764.9,0.79421375]
[1724566460968,3.6163,2765.3,2765.0,2.4044]
[1724566461469,1.51079071,2765.1,2765.0,2.4044]
[1724566469477,1.51079071,2765.1,2765.0,7.29048439]
[1724566471326,2.26618606,2765.5,2765.1,3.61643]
[1724566471327,1.13292094,2765.4,2765.1,3.61643]
[1724566471480,1.13292094,2765.4,2765.2,4.70705144]
[1724566472111,1.13292094,2765.4,2765.2,1.09069144]
[1724566472323,1.13292094,2765.4,2765.1,3.61649]
[1724566474076,1.13292094,2765.4,2765.2,3.61636]
[1724566474276,1.13292094,2765.4,2765.3,2.4044]
[1724566476401,1.13292094,2765.5,2765.3,2.4044]
[1724566477336,1.13292094,2765.5,2765.2,3.61629]
[1724566477902,1.13292094,2765.5,2765.2,7.23257]
[1724566478105,1.13292094,2765.5,2765.2,8.31318244]
[1724566478616,1.13292094,2765.5,2765.1,5.92069]
[1724566478821,1.13292094,2765.4,2765.1,5.92069]
[1724566479115,1.13292094,2765.5,2765.1,5.92069]
[1724566481095,1.13292094,2765.4,2765.1,5.92069]
[1724566487837,1.13292094,2765.5,2765.1,5.92069]
[1724566488045,1.13292094,2765.4,2765.1,5.92069]
[1724566489259,1.13292094,2765.4,2764.9,4.41095375]
[1724566489459,4.74911094,2765.4,2764.8,3.57365439]
[1724566489752,4.74911094,2765.4,2764.7,3.61694]
[1724566489753,1.13292094,2765.2,2764.7,3.61694]
[1724566492828,1.13292094,2765.1,2764.7,7.23389]
[1724566495733,1.13292094,2765.1,2764.7,3.61694]
[1724566496207,1.13292094,2765.0,2764.7,3.61694]
[1724566498118,1.13292094,2765.0,2764.7,7.23387]
[1724566498319,1.13292094,2765.0,2764.7,3.61693]
[1724566501036,1.13292094,2765.0,2764.7,8.31463344]
[1724566501233,1.13292094,2765.0,2764.8,3.61688]
[1724566502521,1.13292094,2765.0,2764.7,3.61693]
[1724566503429,1.13292094,2764.9,2764.7,3.61693]
[1724566503661,1.13292094,2765.0,2764.7,7.23387]
[1724566503842,1.13292094,2765.0,2764.8,3.61689]
[1724566504915,1.13292094,2765.1,2764.8,3.61689]
[1724566505365,1.13292094,2765.0,2764.8,3.61689]
[1724566505574,1.13292094,2765.1,2764.8,3.61689]
[1724566506062,1.13292094,2765.0,2764.8,3.61689]
[1724566508171,1.13292094,2765.0,2764.6,4.88649439]
[1724566508479,1.13292094,2764.9,2764.7,3.61702]
[1724566508639,1.13292094,2765.0,2764.7,3.61702]
[1724566509465,1.13292094,2765.0,2764.4,3.6174]
[1724566509770,1.13292094,2765.0,2764.2,5.9724]
[1724566509771,1.13292094,2764.7,2764.2,5.9724]
[1724566512366,3.6173,2764.5,2764.0,2.3548]
[1724566512565,4.05942211,2764.5,2763.9,3.61799]
[1724566512866,4.05942211,2764.5,2763.8,1.26945439]
[1724566512867,1.13292094,2764.3,2763.8,1.26945439]
[1724566513064,1.13292094,2764.3,2763.7,5.97301]
[1724566513065,1.13292094,2764.2,2763.7,5.97301]
[1724566513251,4.75056094,2764.3,2763.7,11.04951644]
[1724566514324,4.75056094,2764.3,2763.7,7.43125644]
[1724566515140,3.61764,2764.3,2763.7,7.43125644]
[1724566515578,3.61777,2764.2,2763.5,13.31331]
[1724566515778,3.61777,2764.2,2763.6,3.61846]
[1724566516077,3.61777,2764.2,2763.7,3.61833]
[1724566516656,7.23555,2764.2,2763.5,9.59181]
[1724566516857,3.61781,2764.1,2763.5,5.9733]
[1724566517044,3.61781,2764.1,2763.5,7.35945544]
[1724566517543,2.3004,2763.9,2763.4,4.88816439]
[1724566517758,3.61804,2764.0,2763.5,3.61858]
[1724566518388,3.61804,2764.0,2763.4,1.26945439]
[1724566518670,3.61804,2764.0,2763.4,4.88812439]
[1724566521704,3.61792,2764.1,2763.5,3.61858]
[1724566521911,7.18761439,2764.2,2763.6,3.61846]
[1724566522227,2.3004,2764.5,2764.0,1.26945439]
[1724566522502,5.49995821,2764.9,2764.3,3.61747]
[1724566522503,4.74969094,2764.9,2764.3,3.61747]
[1724566522699,4.74969094,2764.9,2764.4,3.61741]
[1724566522700,1.89878977,2764.9,2764.4,3.61741]
[1724566522871,2.64371165,2765.3,2764.8,1.26945439]
[1724566523082,4.74902094,2765.5,2764.8,4.88626439]
[1724566523405,3.61612,2765.4,2764.8,4.88626439]
[1724566523600,4.68267409,2765.4,2764.8,4.88626439]
[1724566524558,4.68267409,2765.4,2764.8,3.61681]
[1724566524962,3.61659,2765.1,2764.5,2.3548]
[1724566525157,2.4855,2765.1,2764.2,6.0182]
[1724566525362,3.61677,2764.9,2764.2,2.4006]
[1724566526104,2.4855,2765.1,2764.4,3.61731]
[1724566526354,1.13292094,2765.3,2764.5,2.4006]
[1724566526607,1.88246767,2765.6,2764.7,2.4006]
[1724566526608,3.6159,2765.6,2764.7,2.4006]
[1724566526830,4.09078209,2765.6,2765.0,3.61661]
[1724566527917,4.09078209,2765.6,2765.0,2.76971]
[1724566532286,4.09078209,2765.6,2764.8,3.61681]
[1724566532287,3.616,2765.5,2764.8,3.61681]
[1724566532494,4.09078209,2765.6,2764.9,3.61667]
[1724566532677,3.6159,2765.6,2764.9,3.61667]
[1724566533022,7.23186,2765.6,2764.9,3.61667]
[1724566533318,3.6159,2765.6,2764.9,3.61667]
[1724566534086,3.6159,2765.6,2765.0,3.61662]
[1724566534830,3.6159,2765.6,2764.8,4.218551]
[1724566534971,3.61611,2765.4,2764.8,4.218551]
[1724566536231,3.61665,2765.0,2764.5,2.4006]
[1724566536375,3.61647,2765.2,2764.4,3.61733]
[1724566536574,3.61647,2765.2,2764.6,3.61707]
[1724566536881,3.61647,2765.2,2764.6,7.23413]
[1724566537113,5.334281,2765.2,2764.6,7.23414]
[1724566537481,5.334281,2765.2,2764.6,3.61706]
[1724566539970,8.950751,2765.2,2764.6,3.61706]
[1724566540327,5.334281,2765.2,2764.6,3.61706]
[1724566541474,8.950741,2765.2,2764.6,3.61706]
[1724566541955,1.6410741,2765.1,2764.4,3.61731]
[1724566542159,3.61664,2765.0,2764.5,3.61727]
[1724566542658,5.2576141,2765.1,2764.5,3.61727]
[1724566543638,3.61664,2765.0,2764.4,3.61731]
[1724566544569,3.61664,2765.0,2764.4,7.23463]
[1724566544725,3.61664,2765.0,2764.4,3.61731]
[1724566544930,3.61664,2765.0,2764.4,7.23464]
[1724566545354,3.61664,2765.0,2764.5,3.61726]
[1724566545554,1.6410741,2765.1,2764.5,3.61726]
[1724566546075,5.2575941,2765.1,2764.5,3.61726]
[1724566546583,2.3238,2764.9,2764.3,6.01808]
[1724566546724,5.94067,2764.9,2764.4,1.26741373]
[1724566548140,3.6169,2764.8,2764.4,1.26741373]
[1724566551872,3.6169,2764.8,2764.1,6.61778]
[1724566552100,0.59407,2764.7,2764.1,3.61778]
[1724566552749,3.61743,2764.4,2763.9,2.3941]
[1724566552971,3.6177,2764.2,2763.6,2.3941]
[1724566553189,3.61783,2764.1,2763.6,1.26741373]
[1724566553369,3.61783,2764.1,2763.5,3.61848]
[1724566553568,3.61783,2764.1,2763.5,7.23699]
[1724566554188,4.211993,2764.1,2763.5,3.61848]
[1724566554757,3.61801,2764.0,2763.5,3.61848]
[1724566556807,3.61801,2764.0,2763.3,3.61879]
[1724566556808,3.61801,2764.0,2763.3,3.61874]
[1724566556963,3.61801,2764.0,2763.4,3.61863]
[1724566558510,3.61801,2764.0,2763.5,3.61858]
[1724566561312,4.06525352,2764.0,2763.3,3.61874]
[1724566561472,2.4354,2763.9,2763.4,3.61872]
[1724566562387,2.4354,2763.9,2763.5,3.61858]
[1724566565581,2.4354,2763.9,2763.3,3.61874]
[1724566565905,2.4354,2763.9,2763.4,3.6187]
[1724566566496,6.05352,2763.9,2763.3,3.61874]
[1724566567117,2.4354,2763.9,2763.1,3.0]
[1724566567282,3.61857,2763.6,2763.0,3.61918]
[1724566567484,3.61839,2763.7,2763.1,6.61905]
[1724566567721,7.23681,2763.7,2763.1,6.61905]
[1724566567923,3.61839,2763.7,2763.1,6.61905]
[1724566568135,11.07759,2764.3,2763.6,3.61846]
[1724566568136,3.61782,2764.1,2763.6,3.61846]
[1724566568342,13.51295,2764.3,2763.7,5.93811]
[1724566568498,1.351295,2764.2,2763.7,5.93811]
[1724566568700,1.351295,2764.2,2763.8,3.61818]
[1724566569337,3.61789,2764.1,2763.5,5.93839]
[1724566569538,3.6177,2764.2,2763.6,7.23673]
[1724566569847,9.8954,2764.3,2763.8,3.61817]
[1724566571600,13.51299,2764.3,2763.8,3.61817]
[1724566572025,9.8954,2764.3,2763.8,7.23629]
[1724566572226,9.8954,2764.3,2763.8,3.61812]
[1724566573652,13.51301,2764.3,2763.8,3.61812]
[1724566574145,6.05301,2764.3,2763.8,3.61812]
[1724566574827,3.61761,2764.3,2763.9,2.3198]
[1724566575230,13.51258,2764.6,2763.9,2.99318607]
[1724566575429,4.21117,2764.7,2763.9,2.92082791]
[1724566575430,3.6171,2764.7,2763.9,2.92082791]
[1724566575650,3.6171,2764.7,2764.0,0.07234733]
[1724566576033,2.4354,2764.8,2764.2,3.6176]
[1724566576231,2.4354,2764.8,2764.3,5.93734]
[1724566576775,7.23369,2764.9,2764.3,5.93734]
[1724566577150,3.61689,2764.8,2764.3,5.93734]
[1724566577552,3.61689,2764.8,2764.3,2.3198]
[1724566578583,3.61689,2764.8,2764.4,1.26755044]
[1724566579134,3.61704,2764.7,2764.3,2.3198]
[1724566580154,3.61704,2764.7,2764.0,4.88544044]
[1724566580351,2.402,2764.6,2764.0,4.88540044]
[1724566580532,2.402,2764.6,2764.1,3.6178]
[1724566580756,6.01916,2764.6,2764.0,8.50325044]
[1724566581641,6.01916,2764.6,2764.1,3.6178]
[1724566581841,6.01916,2764.6,2764.0,4.88540044]
[1724566582040,6.01916,2764.6,2764.0,8.50326044]
[1724566582262,6.01916,2764.6,2764.0,4.88540044]
[1724566582468,6.01916,2764.6,2764.0,8.50324044]
[1724566582663,6.01916,2764.6,2764.0,4.88539044]
[1724566582863,6.01916,2764.6,2764.0,8.50323044]
[1724566584969,3.61731,2764.5,2764.0,4.88539044]
[1724566585184,6.01916,2764.6,2764.0,4.88539044]
[1724566585390,10.92720106,2764.6,2764.0,4.88539044]
[1724566586108,10.92718106,2764.6,2764.0,4.88539044]
[1724566586456,7.30994106,2764.6,2764.0,4.88539044]
[1724566586876,10.92719106,2764.6,2764.0,4.88539044]
[1724566587060,7.30994106,2764.6,2764.0,4.88539044]
[1724566587602,3.61716,2764.6,2764.3,2.417]
[1724566587802,4.48816919,2764.8,2764.3,2.417]
[1724566587803,8.10517919,2764.8,2764.3,2.417]
[1724566588505,3.61707,2764.7,2764.3,2.417]
[1724566589057,4.48816919,2764.8,2764.3,2.417]
[1724566591284,8.10518919,2764.8,2764.3,2.417]
[1724566592387,3.61705,2764.7,2764.3,2.417]
[1724566593007,3.61716,2764.6,2764.2,1.26755044]
[1724566594012,6.0193,2764.5,2764.0,4.88541044]
[1724566594609,6.0193,2764.5,2764.0,1.26755044]
[1724566594610,3.61745,2764.4,2764.0,1.26755044]
[1724566594815,3.61745,2764.4,2763.8,7.30270044]
[1724566595022,7.23498,2764.4,2763.8,7.30270044]
[1724566595165,3.61756,2764.3,2763.8,3.68455044]
[1724566595369,3.61745,2764.4,2763.8,3.68455044]
[1724566595571,3.61771,2764.2,2763.8,3.68455044]
[1724566597378,3.61771,2764.2,2763.7,3.6183]
[1724566597584,3.61802,2764.0,2763.3,7.21099044]
[1724566597865,3.61802,2764.0,2763.3,5.94347]
[1724566598106,3.61808,2763.9,2763.3,10.82980044]
[1724566598483,3.61808,2763.9,2763.4,3.61872]
[1724566598821,3.61795,2764.0,2763.5,1.26755044]
[1724566600822,4.69419209,2764.0,2763.4,3.61872]
[1724566600981,1.13292094,2764.4,2764.1,3.61781]
[1724566601324,1.13292094,2764.6,2764.3,4.88508044]
[1724566601464,1.13292094,2764.7,2764.3,4.88508044]
[1724566602118,4.74987094,2764.8,2764.3,4.88508044]
[1724566602461,4.74987094,2764.8,2764.3,3.61753]
[1724566602662,1.13292094,2764.7,2764.1,7.30785718]
[1724566603467,1.13292094,2764.7,2764.2,3.61765]
[1724566603985,4.74987094,2764.8,2764.2,3.61765]
[1724566604369,1.13292094,2764.7,2764.2,3.61765]
[1724566606493,4.74987094,2764.8,2764.2,3.61765]
[1724566606897,4.74987094,2764.8,2764.1,3.61772]
[1724566607215,1.13292094,2764.7,2764.1,3.61772]
[1724566607412,1.13292094,2764.7,2764.1,4.573763]
[1724566608234,4.74995094,2764.7,2764.1,4.573763]
[1724566609619,4.75008094,2764.6,2764.1,3.61772]
[1724566610281,3.61716,2764.6,2764.1,3.61772]
[1724566610687,4.75008094,2764.6,2764.1,3.61772]
[1724566612309,1.13292094,2764.6,2764.1,3.61771]
[1724566613429,1.13292094,2764.6,2764.1,7.23544]
[1724566613629,1.13292094,2764.6,2764.1,8.191454]
[1724566615499,1.13292094,2764.5,2764.1,8.191454]
[1724566617150,1.13292094,2764.5,2764.1,4.573724]
[1724566617348,1.13292094,2764.5,2764.1,3.61771]
[1724566618113,1.13292094,2764.5,2764.1,7.23543]
[1724566619043,1.13292094,2764.5,2764.1,3.61771]
[1724566621034,1.13292094,2764.5,2764.0,3.61791]
[1724566621358,1.13292094,2764.5,2764.1,3.61778]
[1724566621649,1.13292094,2764.5,2764.1,3.61774]
[1724566622675,1.13292094,2764.5,2764.1,8.50320606]
[1724566623516,1.13292094,2764.5,2764.2,3.61767]
[1724566625876,1.99837611,2764.5,2764.2,3.61767]
[1724566626219,1.13292094,2764.4,2764.2,3.61767]
[1724566626561,1.13292094,2764.4,2764.1,4.88555606]
[1724566626759,2.3176,2764.3,2763.7,3.61826]
[1724566626991,5.22248864,2764.2,2763.7,3.61826]
[1724566627191,2.3176,2764.0,2763.7,3.61826]
[1724566628100,2.3176,2764.0,2763.5,10.95854]
[1724566628305,3.45052094,2764.0,2763.5,10.95852]
[1724566628516,1.13292094,2763.9,2763.5,3.61852]
[1724566628675,1.99083511,2763.9,2763.5,3.61852]
[1724566629795,5.60892511,2763.9,2763.3,3.61879]
[1724566630114,7.06873094,2763.8,2763.2,1.26775606]
[1724566630319,4.47600417,2763.9,2762.9,9.00292]
[1724566630320,3.58535606,2763.6,2762.9,3.6193]
[1724566630476,4.4522627,2763.5,2762.9,3.6193]
[1724566630863,5.58518364,2763.5,2762.9,3.6193]
[1724566631166,0.8336627,2763.5,2763.1,3.61911]
[1724566631477,3.45052094,2763.6,2763.1,3.61911]
[1724566631676,2.3176,2763.6,2763.1,3.61911]
[1724566635912,2.3176,2763.6,2763.2,3.61898]
[1724566638817,2.3176,2763.6,2763.2,4.88673606]
[1724566638984,3.53762094,2763.9,2763.4,1.26775606]
[1724566639194,3.53762094,2763.9,2763.6,3.61838]
[1724566639195,2.4047,2763.9,2763.6,3.61838]
[1724566639373,2.4047,2763.9,2763.6,7.23676]
[1724566639573,3.53762094,2764.2,2763.7,3.61823]
[1724566639805,3.53762094,2764.2,2763.6,4.88613606]
[1724566639806,1.13292094,2764.1,2763.6,4.88613606]
[1724566640033,3.39806677,2764.2,2763.8,4.88586606]
[1724566640034,1.13292094,2764.2,2763.8,4.88586606]
[1724566640178,1.13292094,2764.3,2764.0,3.61794]
[1724566640374,5.42097681,2764.4,2764.0,3.61794]
[1724566640575,3.53762094,2764.4,2764.0,3.61794]
[1724566641022,3.53762094,2764.4,2763.8,6.02651]
[1724566641023,3.53762094,2764.4,2763.8,9.64462]
[1724566641323,3.53762094,2764.4,2763.9,3.61806]
[1724566641889,3.53762094,2764.4,2763.8,6.02651]
[1724566642148,7.15507094,2764.4,2763.8,6.02651]
[1724566642284,8.57171218,2764.4,2763.8,3.61811]
[1724566643724,8.57171218,2764.4,2763.9,3.61806]
[1724566644034,7.43879124,2764.4,2763.8,3.61811]
[1724566644579,8.57171218,2764.4,2763.8,3.61811]
[1724566645939,7.43879124,2764.4,2763.9,3.61804]
[1724566646087,6.02215,2764.4,2763.9,3.61804]
[1724566646289,6.02215,2764.4,2763.6,6.02679]
[1724566646582,7.15507094,2764.4,2763.8,3.61818]
[1724566648141,3.61755,2764.3,2763.8,3.61818]
[1724566649892,2.2548,2764.2,2763.7,3.61833]
[1724566650107,3.61812,2763.9,2763.3,3.61874]
[1724566650389,3.61802,2764.0,2763.4,3.61871]
[1724566652014,3.61831,2763.8,2763.2,6.61893]
[1724566652554,3.61831,2763.8,2763.2,6.61891]
[1724566652701,3.61831,2763.8,2763.2,3.61891]
[1724566653102,3.61831,2763.8,2763.2,7.23781]
[1724566653302,2.2548,2763.9,2763.2,3.6189]
[1724566653504,2.2548,2763.9,2763.4,3.61864]
[1724566658823,5.87287,2763.9,2763.4,3.61864]
[1724566659410,3.61823,2763.8,2763.3,3.61883]
[1724566661161,3.61823,2763.8,2763.2,3.6189]
[1724566661374,2.447,2763.6,2763.0,6.07564]
[1724566661504,1.26875033,2763.5,2762.9,3.61937]
[1724566662540,7.19846094,2763.6,2762.9,3.61937]
[1724566662723,4.88742033,2763.5,2762.9,3.61937]
[1724566662922,2.447,2763.2,2762.6,3.6197]
[1724566663323,6.06603,2763.2,2762.6,3.6197]
[1724566664062,3.61912,2763.1,2762.4,3.61992]
[1724566664374,4.88787033,2763.1,2762.4,3.61992]
[1724566664872,4.88787033,2763.1,2762.5,3.61984]
[1724566665023,6.09655246,2763.1,2762.5,3.61984]
[1724566665229,2.47743246,2763.1,2762.5,3.61984]
[1724566665482,1.20868213,2763.1,2762.6,3.61974]
[1724566668184,4.82784213,2763.1,2762.5,1.26875033]
[1724566668478,4.82783213,2763.1,2762.6,3.61976]
[1724566669177,1.20868213,2763.1,2762.6,7.23952]
[1724566669322,2.447,2763.2,2762.8,3.61949]
[1724566669525,12.21170094,2763.4,2762.9,3.61929]
[1724566669526,9.907,2763.4,2762.9,3.61929]
[1724566669777,13.52573,2763.4,2762.8,3.61949]
[1724566670019,15.9932662,2763.4,2762.8,7.23892]
[1724566670218,15.9932662,2763.4,2762.9,3.61936]
[1724566670532,9.907,2763.4,2762.9,3.61936]
[1724566670824,9.907,2763.4,2762.8,3.61943]
[1724566670825,13.52575,2763.4,2762.8,3.61943]
[1724566672286,17.14457,2763.4,2762.8,3.61943]
[1724566673101,3.61887,2763.3,2762.8,3.61943]
[1724566674977,17.14457,2763.4,2762.8,3.61943]
[1724566675178,3.61886,2763.3,2762.8,3.61943]
[1724566676989,3.61886,2763.3,2762.7,3.73325033]
[1724566678095,3.61886,2763.3,2762.7,7.35284033]
[1724566680116,13.52575,2763.4,2762.8,3.61942]
[1724566680680,5.96642,2763.6,2762.9,1.26875033]
[1724566680929,3.61865,2763.5,2763.1,3.64335033]
[1724566681546,3.61865,2763.5,2763.1,2.3746]
[1724566681853,3.61865,2763.5,2762.9,7.26273033]
[1724566681999,3.61873,2763.4,2762.9,8.35094436]
[1724566682440,8.37001094,2763.6,2762.9,8.35083436]
[1724566682640,7.2371,2763.6,2763.0,3.61925]
[1724566682843,3.61862,2763.5,2762.9,8.35083436]
[1724566683356,4.75144094,2763.6,2763.1,3.61904]
[1724566683721,3.61852,2763.6,2763.1,3.61904]
[1724566684303,7.23707,2763.6,2763.1,3.61904]
[1724566684716,7.23708,2763.6,2763.0,0.83508344]
[1724566684912,3.61852,2763.6,2763.0,4.45430344]
[1724566685129,7.23707,2763.6,2763.0,4.45430344]
[1724566685472,1.13292094,2763.7,2763.2,2.3746]
[1724566685746,7.09909094,2763.8,2763.2,2.3746]
[1724566685915,3.61836,2763.7,2763.2,2.3746]
[1724566686322,7.23657,2763.8,2763.3,1.26875033]
[1724566686634,3.61834,2763.7,2763.3,1.26875033]
[1724566687510,3.61801,2764.0,2763.5,1.26875033]
[1724566687813,1.13292094,2764.1,2763.6,3.61845]
[1724566688043,4.75065094,2764.2,2763.6,3.61845]
[1724566688348,4.75065094,2764.2,2763.5,3.6185]
[1724566688349,4.75073094,2764.1,2763.5,3.6185]
[1724566688549,6.10032114,2764.1,2763.5,3.6185]
[1724566690133,4.75073094,2764.1,2763.5,3.6185]
[1724566690643,4.75073094,2764.1,2763.5,4.88725033]
[1724566691041,4.75073094,2764.1,2763.5,8.50577033]
[1724566691241,4.75073094,2764.1,2763.5,4.88725033]
[1724566692454,1.13292094,2764.1,2763.6,3.61844]
[1724566692770,1.13292094,2764.1,2763.6,4.70646903]
[1724566693141,1.13292094,2764.1,2763.7,1.26875033]
[1724566693345,4.75065094,2764.2,2763.7,1.26875033]
[1724566694367,4.75065094,2764.2,2763.6,1.08802903]
[1724566694931,4.75065094,2764.2,2763.6,4.70645903]
[1724566695269,4.75065094,2764.2,2763.5,4.88725033]
[1724566695270,1.13292094,2764.1,2763.5,4.88725033]
[1724566695469,8.36843094,2764.2,2763.5,4.88725033]
[1724566695825,1.13292094,2764.1,2763.5,4.88725033]
[1724566696025,4.75065094,2764.2,2763.5,8.50576033]
[1724566696231,1.13292094,2764.1,2763.5,8.50576033]
[1724566696485,1.13292094,2764.1,2763.5,4.70653603]
[1724566696783,4.75081094,2764.1,2763.5,3.6185]
[1724566698452,4.75081094,2764.1,2763.5,7.23701]
[1724566699555,1.13292094,2764.1,2763.7,3.61828]
[1724566700448,1.13292094,2764.1,2763.5,7.23698]
[1724566701178,1.13292094,2764.1,2763.6,3.61844]
[1724566704729,5.96444,2763.6,2762.9,10.83333033]
[1724566704871,3.6186,2763.5,2762.9,3.6193]
[1724566705072,3.61873,2763.4,2762.8,3.61949]
[1724566705274,7.23758,2763.4,2762.8,3.61949]
[1724566705570,3.61873,2763.4,2762.8,3.61949]
[1724566705769,3.61873,2763.4,2762.8,7.23891]
[1724566706216,9.583,2763.6,2762.9,3.61934]
[1724566707118,5.96443,2763.6,2763.0,3.61917]
[1724566708029,3.61905,2763.2,2762.7,0.7595664]
[1724566708322,2.3459,2763.4,2762.7,7.9987064]
[1724566708323,5.96467,2763.4,2762.7,7.9987064]
[1724566708619,3.61886,2763.3,2762.7,4.3791064]
[1724566709274,3.61901,2763.2,2762.7,0.7595664]
[1724566709702,3.61901,2763.2,2762.6,3.61975]
[1724566712035,3.61901,2763.2,2762.3,3.62015]
[1724566712036,3.47882094,2763.2,2762.3,3.62015]
[1724566712241,3.6195,2762.9,2762.2,5.9461]
[1724566712449,3.6195,2762.9,2762.2,7.202761]
[1724566712643,3.6195,2762.9,2762.2,10.822961]
[1724566713143,3.6195,2762.9,2762.3,3.62016]
[1724566717876,6.0163,2762.9,2762.3,3.62016]
[1724566718833,6.0163,2762.9,2762.2,7.202761]
[1724566719038,6.0163,2762.9,2762.4,3.62002]
[1724566730278,2.3968,2762.9,2762.4,3.62002]
[1724566730608,2.3968,2762.9,2762.5,3.61989]
[1724566738161,2.3968,2762.9,2762.4,2.412]
[1724566738162,7.46,2763.1,2762.6,1.26950208]
[1724566738361,7.46,2763.1,2762.7,3.61952]
[1724566739419,7.15821094,2763.5,2762.9,3.61938]
[1724566739623,6.02529,2763.5,2762.9,3.61938]
[1724566740549,3.61874,2763.4,2762.9,3.61938]
[1724566740859,6.02529,2763.5,2762.9,3.6193]
[1724566741070,6.02529,2763.5,2762.9,4.71922652]
[1724566741916,9.64399,2763.5,2762.9,4.71922652]
[1724566742120,6.02529,2763.5,2762.9,3.61929]
[1724566743673,6.02529,2763.5,2762.9,3.61929]
[1724566743977,6.02576,2763.2,2762.5,3.6198]
[1724566744153,3.61932,2763.0,2762.5,3.6198]
[1724566744352,3.61932,2763.0,2762.3,7.88960208]
[1724566744353,3.61953,2762.8,2762.3,4.88966208]
[1724566744516,3.61953,2762.8,2762.3,3.62016]
[1724566745647,2.4067,2762.9,2762.3,3.62007]
[1724566745983,2.4067,2762.9,2762.3,7.24014]
[1724566746120,6.0261,2762.9,2762.3,7.24014]
[1724566746771,6.0261,2762.9,2762.3,3.62007]
[1724566747419,7.15902094,2762.9,2762.3,3.62007]
[1724566747615,3.61951,2762.8,2762.3,3.62007]
[1724566749361,4.75243094,2762.8,2762.3,3.62007]
[1724566749871,3.61966,2762.7,2762.1,10.92877208]
[1724566750079,4.75243094,2762.8,2762.2,3.62027]
[1724566750370,1.13292094,2762.7,2762.2,3.62027]
[1724566751018,4.75257094,2762.7,2762.1,7.13179721]
[1724566751386,2.4437,2762.5,2762.0,3.62053]
[1724566751540,2.4437,2762.5,2762.0,4.70680321]
[1724566751868,2.4437,2762.5,2762.0,1.08627321]
[1724566752078,3.62019,2762.3,2761.7,10.24247208]
[1724566752374,3.62019,2762.3,2761.7,3.62160208]
[1724566752664,4.75311094,2762.3,2761.7,3.62160208]
[1724566753223,4.75311094,2762.3,2761.7,7.24254208]
[1724566754277,3.62019,2762.3,2761.7,9.06291229]
[1724566754424,4.75311094,2762.3,2761.7,9.06291229]
[1724566754768,3.62019,2762.3,2761.7,9.06291229]
[1724566755730,3.62019,2762.3,2761.7,12.68378229]
[1724566756025,1.13292094,2762.4,2761.9,3.62068]
[1724566756225,6.06369,2762.5,2761.9,4.89012208]
[1724566756445,7.19661094,2762.5,2761.9,3.62062]
[1724566756772,7.19661094,2762.5,2761.9,4.89012208]
[1724566757266,6.06369,2762.5,2761.9,4.89012208]
[1724566757423,7.19661094,2762.5,2761.9,4.89012208]
[1724566760946,6.06369,2762.5,2761.9,4.89012208]
[1724566761470,3.62004,2762.4,2761.9,4.89012208]
[1724566763976,3.57662094,2762.5,2761.9,8.51070208]
[1724566764212,2.4437,2762.5,2761.9,8.51070208]
[1724566764382,2.4437,2762.5,2761.9,4.89008208]
[1724566764708,2.4437,2762.5,2762.0,3.62053]
[1724566765170,6.06361,2762.5,2761.9,4.89008208]
[1724566765572,7.19653094,2762.5,2761.9,4.89008208]
[1724566765771,6.06361,2762.5,2761.9,4.89008208]